fUSD/lending_fUSD_20240420
["ID","MTS","AMOUNT","RATE_DAILY","PERIOD"]
[323008398,1713585051344,-860.89,0.00015342,2]
[323008399,1713585051354,-1467.68,0.00015342,2]
[323008400,1713585051364,-500.0,0.00015342,2]
[323008401,1713585051374,-500.0,0.00015342,2]
[323008402,1713585051384,-500.0,0.00015342,2]
[323008403,1713585051393,-500.0,0.00015342,2]
[323008404,1713585051403,-1247.94,0.00015342,2]
[323008405,1713585051413,-500.0,0.00015342,2]
[323008406,1713585051423,-500.0,0.00015342,2]
[323008407,1713585051432,-607.03,0.00015342,2]
[323008408,1713585051442,-500.0,0.00015342,2]
[323008409,1713585051451,-1211.92,0.00015342,2]
[323008410,1713585051462,-500.0,0.00015342,2]
[323008411,1713585051472,-500.0,0.00015342,2]
[323008412,1713585051483,-500.0,0.00015342,2]
[323008413,1713585051492,-500.0,0.00015342,2]
[323008414,1713585051502,-500.0,0.00015342,2]
[323008415,1713585051511,-1666.04,0.00015342,2]
[323008416,1713585051521,-1155.55,0.00015342,2]
[323008417,1713585051531,-500.0,0.00015342,2]
[323008418,1713585051545,-2318.86,0.00015342,2]
[323008419,1713585051554,-500.0,0.00015342,2]
[323008420,1713585051564,-735.26,0.00015342,2]
[323008421,1713585051574,-843.82,0.00015342,2]
[323008422,1713585051584,-500.0,0.00015342,2]
[323008423,1713585051593,-1571.9,0.00015342,2]
[323008424,1713585051603,-500.0,0.00015342,2]
[323008425,1713585051612,-713.02,0.00015342,2]
[323008426,1713585051622,-500.0,0.00015342,2]
[323008427,1713585051631,-500.0,0.00015342,2]
[323008428,1713585051641,-500.0,0.00015342,2]
[323008429,1713585051650,-1525.05,0.00015342,2]
[323008430,1713585051659,-987.62,0.00015342,2]
[323008431,1713585051668,-1063.27,0.00015342,2]
[323008432,1713585052037,-500.0,0.00015342,2]
[323008433,1713585052052,-887.35,0.00015342,2]
[323008434,1713585052062,-500.0,0.00015342,2]
[323008435,1713585052071,-526.65,0.00015342,2]
[323008436,1713585052081,-648.86,0.00015342,2]
[323008437,1713585052090,-500.0,0.00015342,2]
[323008438,1713585052099,-1118.11,0.00015342,2]
[323008439,1713585052109,-779.61,0.00015342,2]
[323008440,1713585052118,-1948.8,0.00015342,2]
[323008441,1713585052128,-500.0,0.00015342,2]
[323008442,1713585052137,-500.0,0.00015342,2]
[323008443,1713585052146,-1556.44,0.00015342,2]
[323008444,1713585052156,-2851.58,0.00015342,2]
[323008445,1713585052165,-500.0,0.00015342,2]
[323008446,1713585052175,-996.08,0.00015342,2]
[323008447,1713585052184,-596.97,0.00015342,2]
[323008448,1713585052194,-734.69,0.00015342,2]
[323008449,1713585052203,-500.0,0.00015342,2]
[323008450,1713585052213,-616.39,0.00015342,2]
[323008451,1713585052222,-1441.59,0.00015342,2]
[323008452,1713585052231,-677.46,0.00015342,2]
[323008453,1713585052241,-1706.68,0.00015342,2]
[323008454,1713585052250,-660.48,0.00015342,2]
[323008455,1713585052260,-1047.51,0.00015342,2]
[323008456,1713585052270,-500.0,0.00015342,2]
[323008457,1713585052279,-959.55,0.00015342,2]
[323008458,1713585052290,-258.37449766,0.00015342,2]
[323008459,1713585052300,-545.95,0.00015342,2]
[323008460,1713585052309,-500.0,0.00015342,2]
[323008461,1713585052318,-1637.54,0.00015342,2]
[323008462,1713585052328,-1269.12,0.00015342,2]
[323008463,1713585052337,-922.83,0.00015342,2]
[323008464,1713585052347,-517.93,0.00015342,2]
[323008465,1713585052356,-573.92,0.00015342,2]
[323008466,1713585052365,-625.25,0.00015342,2]
[323008467,1713585052374,-500.0,0.00015342,2]
[323008468,1713585052384,-500.0,0.00015342,2]
[323008469,1713585052393,-500.0,0.00015342,2]
[323008470,1713585052404,-1463.19,0.00015342,2]
[323008471,1713585052413,-500.0,0.00015342,2]
[323008472,1713585052422,-1235.25,0.00015342,2]
[323008473,1713585052432,-1299.92,0.00015342,2]
[323008474,1713585052441,-2063.49,0.00015342,2]
[323008475,1713585052450,-500.0,0.00015342,2]
[323008476,1713585052460,-557.58,0.00015342,2]
[323008477,1713585052469,-500.0,0.00015342,2]
[323008478,1713585052479,-903.49,0.00015342,2]
[323008479,1713585052488,-500.0,0.00015342,2]
[323008480,1713585052498,-643.66,0.00015342,2]
[323008481,1713585052508,-500.0,0.00015342,2]
[323008482,1713585052517,-500.0,0.00015342,2]
[323008483,1713585052526,-500.0,0.00015342,2]
[323008484,1713585052539,-2162.57,0.00015342,2]
[323008485,1713585052549,-2374.65,0.00015342,2]
[323008486,1713585052559,-500.0,0.00015342,2]
[323008487,1713585052569,-1392.49,0.00015342,2]
[323008488,1713585052579,-500.0,0.00015342,2]
[323008489,1713585052588,-620.41,0.00015342,2]
[323008490,1713585052598,-500.0,0.00015342,2]
[323008491,1713585052607,-500.0,0.00015342,2]
[323008492,1713585052617,-5819.52,0.00015342,2]
[323008493,1713585052626,-500.0,0.00015342,2]
[323008494,1713585052635,-552.9,0.00015342,2]
[323008495,1713585052645,-1495.29,0.00015342,2]
[323008496,1713585052654,-1086.78,0.00015342,2]
[323008497,1713585052664,-1193.35,0.00015342,2]
[323008498,1713585052673,-500.0,0.00015342,2]
[323008499,1713585052682,-523.91,0.00015342,2]
[323008500,1713585052692,-500.0,0.00015342,2]
[323008501,1713585052701,-8966.09,0.00015342,2]
[323008502,1713585052711,-1311.31,0.00015342,2]
[323008503,1713585052720,-623.26,0.00015342,2]
[323008504,1713585052731,-1968.17,0.00015342,2]
[323008505,1713585052741,-776.17,0.00015342,2]
[323008506,1713585052750,-500.0,0.00015342,2]
[323008507,1713585052760,-500.0,0.00015342,2]
[323008508,1713585052769,-500.0,0.00015342,2]
[323008509,1713585052779,-500.0,0.00015342,2]
[323008510,1713585052791,-2947.43,0.00015342,2]
[323008511,1713585052801,-2184.87,0.00015342,2]
[323008512,1713585052811,-500.0,0.00015342,2]
[323008513,1713585052820,-500.0,0.00015342,2]
[323008514,1713585052830,-8603.64,0.00015342,2]
[323008515,1713585052839,-5178.9,0.00015342,2]
[323008516,1713585052850,-1547.58,0.00015342,2]
[323008517,1713585052863,-500.0,0.00015342,2]
[323008518,1713585052873,-612.24112044,0.00015342,2]
[323008519,1713585052883,-635.23,0.00015342,2]
[323008520,1713585052893,-2819.74,0.00015342,2]
[323008521,1713585052903,-500.0,0.00015342,2]
[323008522,1713585052913,-500.0,0.00015342,2]
[323008523,1713585052922,-637.85,0.00015342,2]
[323008524,1713585052932,-2350.84,0.00015342,2]
[323008525,1713585052941,-729.3,0.00015342,2]
[323008526,1713585052951,-2728.06,0.00015342,2]
[323008527,1713585052961,-500.0,0.00015342,2]
[323008528,1713585052970,-1395.75,0.00015342,2]
[323008529,1713585052979,-500.0,0.00015342,2]
[323008530,1713585052988,-500.0,0.00015342,2]
[323008531,1713585052997,-916.74,0.00015342,2]
[323008532,1713585053007,-2875.05,0.00015342,2]
[323008533,1713585053016,-500.0,0.00015342,2]
[323008534,1713585053026,-424.77126468,0.00015342,2]
[323008535,1713585053037,-5943.95,0.00015342,2]
[323008536,1713585053046,-500.0,0.00015342,2]
[323008537,1713585053055,-956.55,0.00015342,2]
[323008538,1713585053064,-500.0,0.00015342,2]
[323008539,1713585053074,-500.0,0.00015342,2]
[323008540,1713585053083,-978.69,0.00015342,2]
[323008541,1713585053092,-1667.16,0.00015342,2]
[323008542,1713585053101,-1153.33,0.00015342,2]
[323008543,1713585053111,-412.09763732,0.00015342,2]
[323008544,1713585053120,-3293.41,0.00015342,2]
[323008545,1713585053130,-500.0,0.00015342,2]
[323008546,1713585053139,-500.0,0.00015342,2]
[323008547,1713585053148,-1102.92,0.00015342,2]
[323008548,1713585053158,-500.0,0.00015342,2]
[323008549,1713585053167,-1309.82,0.00015342,2]
[323008550,1713585053177,-543.4647276,0.00015342,2]
[323008551,1713585053186,-618.45,0.00015342,2]
[323008552,1713585053196,-691.07,0.00015342,2]
[323008553,1713585053205,-1425.48,0.00015342,2]
[323008554,1713585053215,-4592.21,0.00015342,2]
[323008555,1713585053224,-500.0,0.00015342,2]
[323008556,1713585053233,-508.31,0.00015342,2]
[323008557,1713585053243,-23489.77,0.00015342,2]
[323008558,1713585053254,-653.33,0.00015342,2]
[323008559,1713585053265,-500.0,0.00015342,2]
[323008560,1713585053274,-622.13,0.00015342,2]
[323008561,1713585053284,-1261.87,0.00015342,2]
[323008562,1713585053297,-2130.91,0.00015342,2]
[323008563,1713585053306,-3508.53,0.00015342,2]
[323008564,1713585053316,-500.0,0.00015342,2]
[323008565,1713585053325,-500.0,0.00015342,2]
[323008566,1713585053334,-500.0,0.00015342,2]
[323008567,1713585053344,-500.0,0.00015342,2]
[323008568,1713585053353,-1401.66,0.00015342,2]
[323008569,1713585053363,-5682.13,0.00015342,2]
[323008570,1713585053372,-709.24,0.00015342,2]
[323008571,1713585053382,-500.25,0.00015342,2]
[323008572,1713585053391,-2116.65,0.00015342,2]
[323008573,1713585053401,-1254.5,0.00015342,2]
[323008574,1713585053410,-542.34,0.00015342,2]
[323008575,1713585053419,-500.0,0.00015342,2]
[323008576,1713585053428,-506.8,0.00015342,2]
[323008577,1713585053438,-836.26,0.00015342,2]
[323008578,1713585053447,-500.0,0.00015342,2]
[323008579,1713585053456,-500.0,0.00015342,2]
[323008580,1713585053466,-500.0,0.00015342,2]
[323008581,1713585053475,-1718.37,0.00015342,2]
[323008582,1713585053484,-894.54,0.00015342,2]
[323008583,1713585053493,-2385.83,0.00015342,2]
[323008584,1713585053502,-500.0,0.00015342,2]
[323008585,1713585053512,-659.72,0.00015342,2]
[323008586,1713585053522,-500.0,0.00015342,2]
[323008587,1713585053531,-527.55,0.00015342,2]
[323008588,1713585053543,-500.0,0.00015342,2]
[323008589,1713585053552,-500.0,0.00015342,2]
[323008590,1713585053562,-2091.57,0.00015342,2]
[323008591,1713585053572,-923.24,0.00015342,2]
[323008592,1713585053581,-813.88,0.00015342,2]
[323008593,1713585053590,-767.36,0.00015342,2]
[323008594,1713585053600,-1978.86,0.00015342,2]
[323008595,1713585053609,-521.41,0.00015342,2]
[323008596,1713585053618,-1321.13,0.00015342,2]
[323008597,1713585053627,-250.32018949,0.00015342,2]
[323008598,1713585053637,-506.43,0.00015342,2]
[323008599,1713585053647,-537.5,0.00015342,2]
[323008600,1713585053656,-500.0,0.00015342,2]
[323008601,1713585053665,-599.48,0.00015342,2]
[323008602,1713585053674,-500.0,0.00015342,2]
[323008603,1713585053684,-1390.91,0.00015342,2]
[323008604,1713585053693,-2174.38,0.00015342,2]
[323008605,1713585053703,-500.0,0.00015342,2]
[323008606,1713585053713,-729.01,0.00015342,2]
[323008607,1713585053722,-500.0,0.00015342,2]
[323008608,1713585053732,-500.0,0.00015342,2]
[323008609,1713585053741,-540.17,0.00015342,2]
[323008610,1713585053752,-500.0,0.00015342,2]
[323008611,1713585053762,-10428.53,0.00015342,2]
[323008612,1713585053771,-3741.81,0.00015342,2]
[323008613,1713585053783,-1779.51,0.00015342,2]
[323008614,1713585053794,-500.0,0.00015342,2]
[323008615,1713585053803,-603.75,0.00015342,2]
[323008616,1713585053812,-3331.13,0.00015342,2]
[323008617,1713585053822,-500.0,0.00015342,2]
[323008618,1713585053832,-1194.63,0.00015342,2]
[323008619,1713585053841,-500.0,0.00015342,2]
[323008620,1713585053851,-500.0,0.00015342,2]
[323008621,1713585053862,-626.35,0.00015342,2]
[323008622,1713585053871,-500.0,0.00015342,2]
[323008623,1713585053881,-938.45,0.00015342,2]
[323008624,1713585053891,-2198.55,0.00015342,2]
[323008625,1713585053901,-628.87,0.00015342,2]
[323008626,1713585053911,-861.4,0.00015342,2]
[323008627,1713585053922,-500.0,0.00015342,2]
[323008628,1713585053933,-981.19,0.00015342,2]
[323008629,1713585053943,-785.93,0.00015342,2]
[323008630,1713585053954,-500.0,0.00015342,2]
[323008631,1713585053964,-933.87,0.00015342,2]
[323008632,1713585053976,-500.0,0.00015342,2]
[323008633,1713585053986,-1273.23,0.00015342,2]
[323008634,1713585053995,-500.0,0.00015342,2]
[323008635,1713585054005,-2502.15,0.00015342,2]
[323008636,1713585054015,-500.0,0.00015342,2]
[323008637,1713585054025,-500.0,0.00015342,2]
[323008638,1713585054035,-2796.3,0.00015342,2]
[323008639,1713585054045,-951.11,0.00015342,2]
[323008640,1713585054054,-500.0,0.00015342,2]
[323008641,1713585054063,-500.0,0.00015342,2]
[323008642,1713585054072,-500.0,0.00015342,2]
[323008643,1713585054081,-855.91,0.00015342,2]
[323008644,1713585054090,-1448.13,0.00015342,2]
[323008645,1713585054099,-500.0,0.00015342,2]
[323008646,1713585054109,-4230.46,0.00015342,2]
[323008647,1713585054118,-502.82,0.00015342,2]
[323008648,1713585054128,-519.0,0.00015342,2]
[323008649,1713585054137,-2346.67,0.00015342,2]
[323008650,1713585054147,-2345.16,0.00015342,2]
[323008651,1713585054157,-150.0,0.00015342,2]
[323008652,1713585054166,-1511.48,0.00015342,2]
[323008653,1713585054176,-500.0,0.00015342,2]
[323008654,1713585054185,-500.0,0.00015342,2]
[323008655,1713585054195,-500.0,0.00015342,2]
[323008656,1713585054205,-1073.37,0.00015342,2]
[323008657,1713585054215,-4321.81,0.00015342,2]
[323008658,1713585054225,-5360.71,0.00015342,2]
[323008659,1713585054234,-1520.68,0.00015342,2]
[323008660,1713585054245,-500.0,0.00015342,2]
[323008661,1713585054258,-500.0,0.00015342,2]
[323008662,1713585054268,-599.4,0.00015342,2]
[323008663,1713585054277,-500.0,0.00015342,2]
[323008664,1713585054287,-1475.08,0.00015342,2]
[323008665,1713585054297,-1915.87,0.00015342,2]
[323008666,1713585054307,-824.65,0.00015342,2]
[323008667,1713585054316,-500.0,0.00015342,2]
[323008668,1713585054326,-500.0,0.00015342,2]
[323008669,1713585054335,-2229.12,0.00015342,2]
[323008670,1713585054344,-1131.46,0.00015342,2]
[323008671,1713585054354,-500.0,0.00015342,2]
[323008672,1713585054451,-500.0,0.00015342,2]
[323008673,1713585054462,-2236.36,0.00015342,2]
[323008674,1713585054472,-1634.94,0.00015342,2]
[323008675,1713585054481,-500.0,0.00015342,2]
[323008676,1713585054490,-1686.99,0.00015342,2]
[323008677,1713585054499,-759.27,0.00015342,2]
[323008678,1713585054508,-500.0,0.00015342,2]
[323008679,1713585054517,-500.0,0.00015342,2]
[323008680,1713585054527,-500.0,0.00015342,2]
[323008681,1713585054536,-500.0,0.00015342,2]
[323008682,1713585054547,-1615.98,0.00015342,2]
[323008683,1713585054556,-500.0,0.00015342,2]
[323008684,1713585054565,-1567.68,0.00015342,2]
[323008685,1713585054575,-518.67,0.00015342,2]
[323008686,1713585054584,-829.59,0.00015342,2]
[323008687,1713585054593,-2614.43,0.00015342,2]
[323008688,1713585054603,-819.76,0.00015342,2]
[323008689,1713585054612,-1291.62,0.00015342,2]
[323008690,1713585054622,-1415.74,0.00015342,2]
[323008691,1713585054631,-500.0,0.00015342,2]
[323008692,1713585054640,-2461.61,0.00015342,2]
[323008693,1713585054650,-917.83,0.00015342,2]
[323008694,1713585054659,-1636.23,0.00015342,2]
[323008695,1713585054669,-1809.89,0.00015342,2]
[323008696,1713585054678,-500.0,0.00015342,2]
[323008697,1713585054688,-1463.72,0.00015342,2]
[323008698,1713585054697,-500.0,0.00015342,2]
[323008699,1713585054707,-500.0,0.00015342,2]
[323008700,1713585054716,-500.0,0.00015342,2]
[323008701,1713585054725,-1909.6,0.00015342,2]
[323008702,1713585054735,-500.0,0.00015342,2]
[323008703,1713585054744,-845.68,0.00015342,2]
[323008704,1713585054753,-500.0,0.00015342,2]
[323008705,1713585054763,-500.0,0.00015342,2]
[323008706,1713585054771,-592.24,0.00015342,2]
[323008707,1713585054781,-4062.79,0.00015342,2]
[323008708,1713585054791,-890.72,0.00015342,2]
[323008709,1713585054800,-2566.0,0.00015342,2]
[323008710,1713585054809,-500.0,0.00015342,2]
[323008711,1713585054819,-500.0,0.00015342,2]
[323008712,1713585054829,-14317.96,0.00015342,2]
[323008713,1713585054840,-500.0,0.00015342,2]
[323008714,1713585054850,-500.0,0.00015342,2]
[323008715,1713585054860,-2390.82,0.00015342,2]
[323008716,1713585054869,-500.0,0.00015342,2]
[323008717,1713585054879,-1295.84,0.00015342,2]
[323008718,1713585054888,-2634.32,0.00015342,2]
[323008719,1713585054898,-536.63,0.00015342,2]
[323008720,1713585054908,-1011.56,0.00015342,2]
[323008721,1713585054917,-500.0,0.00015342,2]
[323008722,1713585054926,-500.0,0.00015342,2]
[323008723,1713585054935,-500.0,0.00015342,2]
[323008724,1713585054945,-500.0,0.00015342,2]
[323008725,1713585054954,-1332.16,0.00015342,2]
[323008726,1713585054964,-618.67,0.00015342,2]
[323008727,1713585054973,-511.55,0.00015342,2]
[323008728,1713585054982,-5851.89,0.00015342,2]
[323008729,1713585054991,-500.0,0.00015342,2]
[323008730,1713585055001,-938.93,0.00015342,2]
[323008731,1713585055011,-5042.94,0.00015342,2]
[323008732,1713585055020,-780.14,0.00015342,2]
[323008733,1713585055029,-500.0,0.00015342,2]
[323008734,1713585055040,-500.0,0.00015342,2]
[323008735,1713585055049,-1797.36,0.00015342,2]
[323008736,1713585055059,-561.22,0.00015342,2]
[323008737,1713585055068,-500.0,0.00015342,2]
[323008738,1713585055078,-3196.79,0.00015342,2]
[323008739,1713585055088,-1222.38,0.00015342,2]
[323008740,1713585055097,-500.0,0.00015342,2]
[323008741,1713585055106,-802.84,0.00015342,2]
[323008742,1713585055116,-3989.84,0.00015342,2]
[323008743,1713585055125,-22411.81,0.00015342,2]
[323008744,1713585055134,-519.99,0.00015342,2]
[323008745,1713585055143,-658.17,0.00015342,2]
[323008746,1713585055153,-4032.2,0.00015342,2]
[323008747,1713585055163,-570.64,0.00015342,2]
[323008748,1713585055173,-585.94,0.00015342,2]
[323008749,1713585055183,-730.84,0.00015342,2]
[323008750,1713585055192,-691.51,0.00015342,2]
[323008751,1713585055201,-612.93,0.00015342,2]
[323008752,1713585055211,-4133.77,0.00015342,2]
[323008753,1713585055220,-3031.95,0.00015342,2]
[323008754,1713585055230,-1598.0,0.00015342,2]
[323008755,1713585055239,-576.0,0.00015342,2]
[323008756,1713585055249,-500.0,0.00015342,2]
[323008757,1713585055259,-530.14,0.00015342,2]
[323008758,1713585055268,-500.0,0.00015342,2]
[323008759,1713585055277,-500.0,0.00015342,2]
[323008760,1713585055286,-500.0,0.00015342,2]
[323008761,1713585055297,-500.0,0.00015342,2]
[323008762,1713585055306,-1995.8,0.00015342,2]
[323008763,1713585055316,-3727.39,0.00015342,2]
[323008764,1713585055326,-1568.33,0.00015342,2]
[323008765,1713585055335,-500.0,0.00015342,2]
[323008766,1713585055346,-1899.63,0.00015342,2]
[323008767,1713585055355,-500.24077008,0.00015342,2]
[323008768,1713585055364,-500.0,0.00015342,2]
[323008769,1713585055373,-500.0,0.00015342,2]
[323008770,1713585055382,-210.88927198,0.00015367,2]
[323008771,1713585055391,-562.07485058,0.00015416,2]
[323008772,1713585055400,-3000.0,0.0001546,2]
[323008773,1713585055410,-1001.60954684,0.000155,2]
[323008774,1713585056126,-514.00807757,0.00015068,2]
[323008775,1713585056135,-500.0,0.00015068,2]
[323008776,1713585056144,-87.71165009,0.00015068,2]
[323008777,1713585056200,-451.9375,0.00015068,2]
[323008778,1713585056233,-58.48084991,0.00015068,2]
[323008779,1713585056242,-500.0,0.00015068,2]
[323008780,1713585056251,-1557.49,0.00015342,2]
[323008781,1713585056261,-3998.38045316,0.000155,2]
[323008782,1713585056270,-7999.99,0.000155,2]
[323008783,1713585056280,-5000.0,0.000155,2]
[323008784,1713585056289,-8000.0,0.000155,2]
[323008785,1713585056300,-3609.05,0.000155,2]
[323008786,1713585056309,-8000.0,0.000155,2]
[323008787,1713585056318,-5000.0,0.000155,2]
[323008788,1713585056327,-150.0,0.000155,2]
[323008789,1713585056338,-210.88927198,0.00015501,2]
[323008790,1713585056347,-8000.0,0.00015505,2]
[323008791,1713585056356,-5000.0,0.00015506,2]
[323008792,1713585056366,-5000.0,0.00015506,2]
[323008793,1713585056375,-8000.0,0.0001551,2]
[323008794,1713585056385,-5000.0,0.00015513,2]
[323008795,1713585056394,-5000.0,0.00015513,2]
[323008796,1713585056403,-4085.59,0.00015515,2]
[323008797,1713585056412,-10000.0,0.00015516,2]
[323008798,1713585056422,-361.3607,0.00015516,2]
[323008799,1713585056432,-450.96113408,0.00015516,2]
[323008800,1713585056441,-179.68588172,0.00015516,2]
[323008801,1713585056451,-2015.08731418,0.00015516,2]
[323008802,1713585056461,-5000.0,0.00015519,2]
[323008803,1713585056472,-5000.0,0.00015519,2]
[323008804,1713585056481,-5000.0,0.00015525,2]
[323008805,1713585056490,-5000.0,0.00015525,2]
[323008806,1713585056499,-5000.0,0.00015531,2]
[323008807,1713585056508,-5000.0,0.00015531,2]
[323008808,1713585056517,-5000.0,0.00015538,2]
[323008809,1713585056526,-5000.0,0.00015538,2]
[323008810,1713585056537,-150.0,0.00015541,2]
[323008811,1713585056548,-5000.0,0.00015544,2]
[323008812,1713585056556,-5000.0,0.0001555,2]
[323008813,1713585056565,-5000.0,0.00015556,2]
[323008814,1713585056575,-5000.0,0.00015563,2]
[323008815,1713585056584,-641.0,0.00015589,2]
[323008816,1713585056596,-800.0,0.00015589,2]
[323008817,1713585056606,-150.0,0.00015595,2]
[323008818,1713585056616,-1000.0,0.000156,2]
[323008819,1713585056625,-8889.2000616,0.00015604,2]
[323008820,1713585056634,-47192.3777285,0.00015604,2]
[323008821,1713585056643,-221.7562599,0.00015604,2]
[323008822,1713585056652,-1429.4125797,0.00015604,2]
[323008823,1713585056661,-21355.09164636,0.00015604,2]
[323008824,1713585056675,-830.34461984,0.00015604,2]
[323008825,1713585056684,-594.05593839,0.00015604,2]
[323008826,1713585056761,-348.64959659,0.00015604,2]
[323008827,1713585056772,-1929.4213772,0.00015604,2]
[323008828,1713585056783,-1854.0,0.00015604,2]
[323008829,1713585057687,-557.24,0.00014431,2]
[323008830,1713585057699,-225.71729257,0.00015068,2]
[323008831,1713585057708,-124.62626821,0.00015604,2]
[323008832,1713585057740,-1126.43968259,0.00015604,2]
[323008833,1713585058714,-727.95,0.00015068,2]
[323008834,1713585058744,-103.41,0.00015068,2]
[323008835,1713585058753,-154.42501236,0.00015068,2]
[323008836,1713585058858,-39.24916357,0.00015068,2]
[323008837,1713585058868,-831.36,0.00015342,2]
[323008838,1713585058877,-924.75825564,0.00015604,2]
[323008839,1713585357882,213.6,0.0001611,15]
[323008840,1713585471488,-404.63791958,0.00011975,2]
[323008841,1713585471511,-150.0,0.00011976,2]
[323008844,1713585630782,1445.36208042,0.00011976,2]
[323008845,1713585630804,248.47735252,0.00011976,2]
[323008846,1713585706580,1751.52264748,0.00011,2]
[323008847,1713585706602,2000.0,0.00011,2]
[323008848,1713585706623,2000.0,0.00011,2]
[323008849,1713585706643,2000.0,0.00011,2]
[323008850,1713585706666,2000.0,0.00011,2]
[323008851,1713585706691,20248.47735252,0.00011,2]
[323008852,1713585715065,30000.0,0.00011,2]
[323008853,1713585755761,30000.0,0.00011,2]
[323008854,1713585849163,200.25,0.0001611,15]
[323008882,1713586232334,-404.63791958,0.00012262,2]
[323008884,1713586232345,-34.34085906,0.00012263,2]
[323008885,1713586232357,-139.35914094,0.00012263,2]
[323008886,1713586232366,-1063.77,0.00014052,2]
[323008887,1713586232376,-4.51411883,0.00014055,2]
[323008888,1713586232387,-301.44505381,0.00014055,2]
[323008889,1713586232398,-194.04082736,0.00014055,2]
[323008890,1713586232409,-2734.71537068,0.00014101,2]
[323008891,1713586232552,-405.20748901,0.00014101,2]
[323008892,1713586232565,-344.1262584,0.00014101,2]
[323008893,1713586232578,-16071.20088191,0.00014101,2]
[323008894,1713586232588,-186.36,0.0001424,2]
[323008895,1713586232599,-261.26264543,0.00014313,2]
[323008896,1713586232608,-1000.0,0.00014378,2]
[323008897,1713586232618,-175.3,0.0001445,2]
[323008898,1713586232627,-400.0,0.00014511,2]
[323008899,1713586232637,-3830.04,0.00014511,2]
[323008900,1713586232646,-786.07,0.00014511,2]
[323008901,1713586232656,-925.4,0.00014511,2]
[323008902,1713586232666,-173.7,0.00014527,2]
[323008903,1713586232676,-150.99,0.00014588,2]
[323008904,1713586232685,-499.99,0.00014588,2]
[323008905,1713586232695,-1851.96677307,0.00014657,2]
[323008906,1713586232705,-555.84,0.00014657,2]
[323008907,1713586232714,-590.0,0.00014658,2]
[323008908,1713586232724,-2076.1323,0.00014968,2]
[323008909,1713586232734,-256.0228,0.00014968,2]
[323008910,1713586232744,-1928.57900112,0.00014968,2]
[323008911,1713586232756,-1798.87599888,0.00014968,2]
[323008912,1713586232766,-170.00180285,0.00014968,2]
[323008913,1713586232779,-187.426829,0.00014968,2]
[323008914,1713586232788,-94.83218384,0.00015,2]
[323008915,1713586232814,-538.72781616,0.00015,2]
[323008916,1713586232823,-3984.28199789,0.00015,4]
[323008917,1713586232834,-3787.627386,0.00015,4]
[323008918,1713586232948,-5612.18071053,0.00015,4]
[323008919,1713586232968,-2672.05989256,0.00015,4]
[323008937,1713586238356,-428.61941707,0.00015,4]
[323008938,1713586238368,-315.19030927,0.00015,4]
[323008939,1713586238417,-1220.20775906,0.00015,4]
[323008940,1713586238429,-406.46916604,0.00015,4]
[323008941,1713586238472,-692.79472096,0.00015,4]
[323008948,1713586239055,-1425.94447234,0.00015,4]
[323008949,1713586239068,-620153.86137167,0.00015,4]
[323008950,1713586239082,-174161.30038675,0.00015,4]